[Event "World Senior chT-50 2019"]
[Site "Rhodes"]
[Date "2019.04.22"]
[Round "7.32"]
[White "Johansson, Bjorn"]
[Black "Titorenko, Natalia I"]
[Result "1-0"]
[ECO "A36"]
[WhiteElo "1888"]
[BlackElo "2153"]
[Annotator "NA"]
[PlyCount "97"]
[EventDate "2019.04.16"]
[EventType "team-tourn"]
[EventCountry "GRE"]
[SourceTitle "playchess.com"]
[Source "ChessBase"]
[SourceQuality "1"]
[WhiteTeam "Sweden"]
[BlackTeam "Russia"]
[WhiteTeamCountry "SWE"]
[BlackTeamCountry "RUS"]
[TimeControl "40/5400+30:1800+30"]

1. c4 {[%emt 0:00:00]} Nf6 {[%emt 0:00:00]} 2. g3 {[%emt 0:00:20]} g6 {[%emt 0:00:11]} 3. Bg2 {[%emt 0:00:11]} Bg7 {[%emt 0:00:00]} 4. Nc3 {[%emt 0:00:13]} O-O {[%emt 0:05:02]} 5. e4 {[%emt 0:00:39]} c5 {[%emt 0:03:08]} 6. Nge2 {[%emt 0:00:30]} Nc6 {[%emt 0:01:26]} 7. O-O {[%emt 0:00:46]} d6 {[%emt 0:01:19]} 8. d3 {[%emt 0:00:58]} Rb8 {[%emt 0:12:14]} 9. h3 $11 {[%emt 0:01:04]} a6 {[%emt 0:02:37]} 10. a4 {[%emt 0:05:22]} Ne8 {[%emt 0:01:49]} 11. Be3 {[%emt 0:02:21]} Nd4 {[%emt 0:03:58]} 12. Bxd4 {[%emt 0:05:18]} cxd4 {[%emt 0:01:52]} 13. Nb1 {[%emt 0:01:34]} b5 {[%emt 0:05:02]} 14. b3 {[%emt 0:01:04]} Nc7 {[%emt 0:11:30]} 15. Nd2 {[%emt 0:02:55]} e5 {[%emt 0:02:13]} 16. g4 {[%emt 0:02:57]} Ne6 {[%emt 0:02:31]} 17. f4 {[%emt 0:01:15]} Nc5 {[%emt 0:04:10]} 18. Qc2 {[%emt 0:02:08]} f6 {[%emt 0:03:38]} 19. f5 {[%emt 0:01:19]} Bh6 {[%emt 0:01:03]} 20. Rfb1 {[%emt 0:02:54]} bxa4 {[%emt 0:04:25]} 21. b4 {[%emt 0:02:17]} Bxd2 {[%emt 0:08:02]} 22. bxc5 {[%emt 0:00:48]} Be3+ {[%emt 0:02:09]} 23. Kh2 {[%emt 0:00:33]} Rxb1 {[%emt 0:00:13]} 24. Rxb1 {[%emt 0:01:26]} dxc5 {[%emt 0:00:04]} 25. Qxa4 {[%emt 0:00:38]} Bd2 {[%emt 0:05:21]} 26. Qc6 {[%emt 0:06:06]} Bb4 {[%emt 0:00:05]} 27. Nc1 {[%emt 0:01:15]} Rf7 {[%emt 0:03:39]} 28. Na2 {[%emt 0:00:38]} a5 {[%emt 0:00:16]} 29. Bf3 {[%emt 0:02:24]} Qd7 {[%emt 0:02:09]} 30. Nxb4 {[%emt 0:02:24]} cxb4 {[%emt 0:01:01]} 31. Qa8 {[%emt 0:00:55]} Qc7 {[%emt 0:05:52]} 32. Bd1 {[%emt 0:03:47]} gxf5 {[%emt 0:05:23]} 33. gxf5 {[%emt 0:02:41]} Rg7 {[%emt 0:01:23]} 34. Bb3 {[%emt 0:02:55]} h6 {[%emt 0:00:50]} 35. Ra1 {[%emt 0:00:26]} Kh7 {[%emt 0:00:55]} 36. Qxa5 {[%emt 0:03:29]} Qxa5 {[%emt 0:00:31]} 37. Rxa5 {[%emt 0:00:08]} Rb7 {[%emt 0:00:41]} 38. c5 {[%emt 0:02:06]} Bd7 {[%emt 0:00:51]} 39. Kg2 {[%emt 0:01:04]} Bb5 {[%emt 0:00:30]} 40. Bd5 {[%emt 0:00:00]} Rb8 {[%emt 0:00:00]} 41. c6 {[%emt 0:01:14]} Bxc6 {[%emt 0:17:35]} 42. Bxc6 {[%emt 0:01:15]} b3 {[%emt 0:00:02]} 43. Ra1 {[%emt 0:01:25]} Rc8 {[%emt 0:03:08]} 44. Ra7+ {[%emt 0:05:00]} Kh8 {[%emt 0:00:02]} 45. Bd5 {[%emt 0:02:47]} b2 {[%emt 0:05:58]} 46. Rb7 {[%emt 0:01:35]} Rc2+ {[%emt 0:00:02]} 47. Kg3 {[%emt 0:00:24]} h5 {[%emt 0:00:51]} 48. Kh4 {[%emt 0:00:23]} Rh2 {[%emt 0:04:47]} 49. Bc4 {[%emt 0:00:38]} 1-0

[Event "World Senior chT-50 2019"]
[Site "Rhodes"]
[Date "2019.04.22"]
[Round "7.33"]
[White "Genta, Alejandro"]
[Black "Zimmermann, Rolf"]
[Result "1/2-1/2"]
[ECO "D35"]
[WhiteElo "2054"]
[BlackElo "2086"]
[Annotator "NA"]
[PlyCount "88"]
[EventDate "2019.04.16"]
[EventType "team-tourn"]
[EventCountry "GRE"]
[SourceTitle "playchess.com"]
[Source "ChessBase"]
[SourceQuality "1"]
[WhiteTeam "Uruguay"]
[BlackTeam "Germany"]
[WhiteTeamCountry "URU"]
[BlackTeamCountry "GER"]
[TimeControl "40/5400+30:1800+30"]

1. d4 {[%emt 0:00:00]} d5 {[%emt 0:00:00]} 2. c4 {[%emt 0:00:00]} e6 {[%emt 0:00:00]} 3. Nc3 {[%emt 0:00:00]} Nf6 {[%emt 0:00:04]} 4. Bg5 {[%emt 0:01:02]} Be7 {[%emt 0:00:05]} 5. cxd5 {[%emt 0:00:43]} exd5 {[%emt 0:02:07]} 6. e3 {[%emt 0:00:24]} c6 {[%emt 0:01:18]} 7. Qc2 {[%emt 0:00:09]} Bg4 {[%emt 0:01:30]} 8. Bd3 {[%emt 0:11:32]} Bh5 {[%emt 0:00:52]} 9. Nf3 {[%emt 0:05:09]} Bg6 {[%emt 0:03:02]} 10. Bxf6 {[%emt 0:06:11]} Bxf6 {[%emt 0:00:32]} 11. b4 {[%emt 0:00:40]} a6 {[%emt 0:00:28]} 12. O-O {[%emt 0:01:59]} O-O {[%emt 0:03:29]} 13. a4 {[%emt 0:01:31]} Nd7 {[%emt 0:00:44]} 14. Bxg6 {[%emt 0:03:00]} hxg6 {[%emt 0:00:06]} 15. b5 {[%emt 0:00:05]} a5 {[%emt 0:13:22]} 16. Rab1 {[%emt 0:05:53]} Nb6 {[%emt 0:07:47]} 17. Rb3 {[%emt 0:39:44]} Rc8 {[%emt 0:02:26]} 18. bxc6 {[%emt 0:04:08]} bxc6 {[%emt 0:06:30]} 19. Rfb1 {[%emt 0:00:26]} Nc4 {[%emt 0:00:17]} 20. Nd2 {[%emt 0:00:11]} Nxd2 {[%emt 0:00:47]} 21. Qxd2 {[%emt 0:00:07]} Qd6 {[%emt 0:06:04]} 22. Ne2 {[%emt 0:01:46]} Ra8 {[%emt 0:00:55]} 23. g3 {[%emt 0:01:16]} Rfc8 {[%emt 0:00:14]} 24. Nf4 {[%emt 0:00:24]} Bd8 {[%emt 0:08:15]} 25. Nd3 {[%emt 0:00:16]} Rab8 {[%emt 0:00:51]} 26. Qc3 {[%emt 0:04:06]} Rxb3 {[%emt 0:01:27]} 27. Rxb3 {[%emt 0:00:06]} Kh7 {[%emt 0:08:56]} 28. Kg2 {[%emt 0:01:24]} Qc7 {[%emt 0:08:26]} 29. Rb1 {[%emt 0:05:31]} Be7 {[%emt 0:01:08]} 30. Rc1 {[%emt 0:02:40]} Bd6 {[%emt 0:00:10]} 31. Rb1 {[%emt 0:00:44]} Qe7 {[%emt 0:00:23]} 32. Kg1 {[%emt 0:01:43]} Qa7 {[%emt 0:09:03]} 33. Rb3 {[%emt 0:00:35]} Rc7 {[%emt 0:05:09]} 34. Qc1 {[%emt 0:01:13]} c5 {[%emt 0:01:17]} 35. dxc5 {[%emt 0:00:55]} Bxc5 {[%emt 0:00:02]} 36. Rc3 {[%emt 0:00:11]} Bd6 {[%emt 0:00:19]} 37. Rxc7 {[%emt 0:00:27]} Bxc7 {[%emt 0:00:02]} 38. Qc6 {[%emt 0:01:03]} Qb8 {[%emt 0:05:23]} 39. Qxd5 {[%emt 0:00:10]} Bd6 {[%emt 0:00:41]} 40. Kg2 {[%emt 0:00:00]} Qc7 {[%emt 0:00:00]} 41. Qd4 {[%emt 0:12:47]} Qc6+ {[%emt 0:02:44]} 42. e4 {[%emt 0:00:11]} Bb4 {[%emt 0:00:22]} 43. Nxb4 {[%emt 0:16:20]} Qxa4 {[%emt 0:00:12]} 44. Qd8 {[%emt 0:00:01]} g5 {[%emt 0:03:33]} 1/2-1/2

[Event "World Senior chT-50 2019"]
[Site "Rhodes"]
[Date "2019.04.22"]
[Round "7.34"]
[White "Hoehn, Michael"]
[Black "Braso, Jorge"]
[Result "0-1"]
[ECO "A05"]
[WhiteElo "2040"]
[BlackElo "2098"]
[Annotator "NA"]
[PlyCount "65"]
[EventDate "2019.04.16"]
[EventType "team-tourn"]
[EventCountry "GRE"]
[SourceTitle "playchess.com"]
[Source "ChessBase"]
[SourceQuality "1"]
[WhiteTeam "Germany"]
[BlackTeam "Uruguay"]
[WhiteTeamCountry "GER"]
[BlackTeamCountry "URU"]
[TimeControl "40/5400+30:1800+30"]

1. Nf3 {[%emt 0:00:00]} d5 {[%emt 0:00:00]} 2. b3 {[%emt 0:00:51]} Nf6 {[%emt 0:00:35]} 3. Bb2 {[%emt 0:00:33]} g6 {[%emt 0:00:45]} 4. g3 {[%emt 0:01:20]} Bg7 {[%emt 0:00:05]} 5. Bg2 {[%emt 0:00:13]} O-O {[%emt 0:01:28]} 6. O-O {[%emt 0:01:13]} Bf5 {[%emt 0:02:03]} 7. d3 {[%emt 0:02:33]} c6 {[%emt 0:03:42]} 8. Nbd2 {[%emt 0:06:52]} a5 {[%emt 0:12:12]} 9. Qe1 {[%emt 0:14:28]} Bg4 {[%emt 0:19:47]} 10. h3 {[%emt 0:04:26]} Bxf3 {[%emt 0:00:20]} 11. Nxf3 {[%emt 0:00:19]} Nbd7 {[%emt 0:03:14]} 12. e4 {[%emt 0:01:59]} dxe4 {[%emt 0:02:14]} 13. dxe4 {[%emt 0:00:09]} Nc5 {[%emt 0:00:36]} 14. Rd1 {[%emt 0:03:33]} Qc8 {[%emt 0:03:43]} 15. e5 {[%emt 0:04:49]} Nd5 {[%emt 0:01:41]} 16. Ba3 {[%emt 0:02:49]} b6 {[%emt 0:00:25]} 17. Nd4 {[%emt 0:03:29]} e6 {[%emt 0:03:29]} 18. c4 {[%emt 0:05:54]} Ne7 {[%emt 0:01:55]} 19. f4 {[%emt 0:07:43]} Qc7 {[%emt 0:02:18]} 20. Bxc5 {[%emt 0:05:46]} bxc5 {[%emt 0:00:04]} 21. Ne2 {[%emt 0:00:27]} a4 {[%emt 0:04:25]} 22. Nc3 {[%emt 0:08:01]} axb3 {[%emt 0:00:16]} 23. axb3 {[%emt 0:00:08]} Ra3 {[%emt 0:08:04]} 24. g4 {[%emt 0:09:21]} Rxb3 {[%emt 0:03:58]} 25. Ne4 {[%emt 0:00:10]} Qb6 {[%emt 0:05:37]} 26. Qh4 {[%emt 0:03:22]} Nc8 {[%emt 0:02:19]} 27. Nf6+ {[%emt 0:01:36]} Bxf6 {[%emt 0:00:17]} 28. exf6 {[%emt 0:00:07]} Rb2 {[%emt 0:04:36]} 29. Be4 {[%emt 0:03:13]} Qb3 {[%emt 0:00:56]} 30. Bd3 {[%emt 0:01:26]} Qc3 {[%emt 0:01:44]} 31. g5 {[%emt 0:02:44]} Nd6 {[%emt 0:01:39]} 32. Qh6 {[%emt 0:04:56]} Nf5 {[%emt 0:00:33]} 33. Ra1 {[%emt 0:02:25]} 0-1

[Event "World Senior chT-50 2019"]
[Site "Rhodes"]
[Date "2019.04.22"]
[Round "7.35"]
[White "Durante, Aurelio"]
[Black "Theuer, Carsten"]
[Result "1-0"]
[ECO "C00"]
[WhiteElo "1955"]
[BlackElo "1868"]
[Annotator "NA"]
[PlyCount "97"]
[EventDate "2019.04.16"]
[EventType "team-tourn"]
[EventCountry "GRE"]
[SourceTitle "playchess.com"]
[Source "ChessBase"]
[SourceQuality "1"]
[WhiteTeam "Uruguay"]
[BlackTeam "Germany"]
[WhiteTeamCountry "URU"]
[BlackTeamCountry "GER"]
[TimeControl "40/5400+30:1800+30"]

1. e4 {[%emt 0:00:00]} e6 {[%emt 0:00:00]} 2. d3 {[%emt 0:00:03]} d5 {[%emt 0:00:00]} 3. Nd2 {[%emt 0:00:03]} Nf6 {[%emt 0:00:22]} 4. Ngf3 {[%emt 0:00:10]} c5 {[%emt 0:00:52]} 5. g3 {[%emt 0:00:15]} Nc6 {[%emt 0:01:09]} 6. Bg2 {[%emt 0:00:11]} Be7 {[%emt 0:01:24]} 7. O-O {[%emt 0:00:11]} O-O {[%emt 0:01:04]} 8. e5 {[%emt 0:00:20]} Nd7 {[%emt 0:00:33]} 9. Re1 {[%emt 0:00:07]} Qc7 {[%emt 0:01:36]} 10. Qe2 {[%emt 0:00:15]} b6 {[%emt 0:06:53]} 11. c3 {[%emt 0:02:59]} Ba6 {[%emt 0:01:58]} 12. Nf1 {[%emt 0:00:27]} Rac8 {[%emt 0:01:22]} 13. Bf4 {[%emt 0:00:14]} Rfd8 {[%emt 0:01:01]} 14. h4 {[%emt 0:00:50]} Nf8 {[%emt 0:04:26]} 15. h5 {[%emt 0:03:14]} c4 {[%emt 0:05:13]} 16. d4 {[%emt 0:00:17]} b5 {[%emt 0:00:05]} 17. Ne3 {[%emt 0:05:22]} Rb8 {[%emt 0:04:09]} 18. a3 {[%emt 0:03:20]} Bc8 {[%emt 0:00:11]} 19. Ng4 {[%emt 0:02:22]} Re8 {[%emt 0:02:02]} 20. h6 {[%emt 0:02:28]} g6 {[%emt 0:07:25]} 21. Nf6+ {[%emt 0:02:10]} Bxf6 {[%emt 0:00:31]} 22. exf6 {[%emt 0:00:03]} Qb6 {[%emt 0:02:17]} 23. Bxb8 {[%emt 0:00:18]} Qxb8 {[%emt 0:00:11]} 24. Ng5 {[%emt 0:05:20]} Bd7 {[%emt 0:01:55]} 25. Nf3 {[%emt 0:07:15]} Qd6 {[%emt 0:05:46]} 26. Ne5 {[%emt 0:00:50]} Bc8 {[%emt 0:00:59]} 27. g4 {[%emt 0:02:09]} Nd7 {[%emt 0:04:54]} 28. Rad1 {[%emt 0:07:54]} a5 {[%emt 0:04:23]} 29. Rd2 {[%emt 0:02:19]} a4 {[%emt 0:00:06]} 30. Qe3 {[%emt 0:00:57]} Rf8 {[%emt 0:00:37]} 31. Qg5 {[%emt 0:03:42]} Ndb8 {[%emt 0:03:24]} 32. f4 {[%emt 0:02:54]} Nxe5 {[%emt 0:03:47]} 33. Rxe5 {[%emt 0:09:39]} Qd8 {[%emt 0:00:49]} 34. f5 {[%emt 0:04:09]} Nd7 {[%emt 0:00:22]} 35. fxe6 {[%emt 0:00:46]} fxe6 {[%emt 0:02:31]} 36. Rxe6 {[%emt 0:07:42]} Nxf6 {[%emt 0:00:16]} 37. Rxf6 {[%emt 0:08:36]} Qxf6 {[%emt 0:02:25]} 38. Bxd5+ {[%emt 0:10:05]} Be6 {[%emt 0:02:37]} 39. Qxf6 {[%emt 0:00:45]} Rxf6 {[%emt 0:00:12]} 40. g5 {[%emt 0:00:00]} Bxd5 {[%emt 0:00:00]} 41. gxf6 {[%emt 0:00:35]} Kf7 {[%emt 0:00:34]} 42. Rf2 {[%emt 0:00:28]} Be4 {[%emt 0:00:17]} 43. Re2 {[%emt 0:00:51]} Bf5 {[%emt 0:06:00]} 44. Re7+ {[%emt 0:00:10]} Kxf6 {[%emt 0:00:09]} 45. Rxh7 {[%emt 0:00:08]} Kg5 {[%emt 0:00:19]} 46. Kf2 {[%emt 0:01:49]} Kh5 {[%emt 0:00:18]} 47. Kg3 {[%emt 0:00:51]} Bd3 {[%emt 0:01:34]} 48. d5 {[%emt 0:00:35]} g5 {[%emt 0:00:35]} 49. Rf7 {[%emt 0:01:09]} 1-0

[Event "World Senior chT-50 2019"]
[Site "Rhodes"]
[Date "2019.04.22"]
[Round "7.36"]
[White "Lanz, Udo"]
[Black "Barboza, Mauro"]
[Result "0-1"]
[ECO "C53"]
[WhiteElo "1807"]
[BlackElo "1873"]
[Annotator "NA"]
[PlyCount "76"]
[EventDate "2019.04.16"]
[EventType "team-tourn"]
[EventCountry "GRE"]
[SourceTitle "playchess.com"]
[Source "ChessBase"]
[SourceQuality "1"]
[WhiteTeam "Germany"]
[BlackTeam "Uruguay"]
[WhiteTeamCountry "GER"]
[BlackTeamCountry "URU"]
[TimeControl "40/5400+30:1800+30"]

1. e4 {[%emt 0:00:00]} e5 {[%emt 0:00:00]} 2. Nf3 {[%emt 0:00:00]} Nc6 {[%emt 0:00:23]} 3. Bc4 {[%emt 0:00:00]} Bc5 {[%emt 0:00:11]} 4. c3 {[%emt 0:00:07]} Qe7 {[%emt 0:00:18]} 5. d4 {[%emt 0:04:55]} Bb6 {[%emt 0:00:13]} 6. O-O {[%emt 0:00:11]} d6 {[%emt 0:00:05]} 7. b4 {[%emt 0:06:50]} Bg4 {[%emt 0:01:33]} 8. d5 {[%emt 0:02:55]} Nb8 {[%emt 0:00:30]} 9. Be2 {[%emt 0:00:19]} Nf6 {[%emt 0:00:10]} 10. Qc2 {[%emt 0:03:54]} Nbd7 {[%emt 0:00:25]} 11. Nbd2 {[%emt 0:01:56]} a6 {[%emt 0:00:35]} 12. Nc4 {[%emt 0:00:44]} Ba7 {[%emt 0:00:17]} 13. Be3 {[%emt 0:00:40]} Bxe3 {[%emt 0:00:12]} 14. Nxe3 {[%emt 0:00:06]} Bh5 {[%emt 0:00:26]} 15. Nf5 {[%emt 0:01:09]} Qf8 {[%emt 0:00:16]} 16. a4 {[%emt 0:01:36]} g6 {[%emt 0:01:17]} 17. Ng3 {[%emt 0:01:27]} Bxf3 {[%emt 0:00:12]} 18. Bxf3 {[%emt 0:00:06]} h5 {[%emt 0:00:11]} 19. c4 {[%emt 0:01:51]} h4 {[%emt 0:09:59]} 20. Ne2 {[%emt 0:01:15]} g5 {[%emt 0:01:06]} 21. g4 {[%emt 0:09:02]} hxg3 {[%emt 0:05:25]} 22. fxg3 {[%emt 0:00:12]} g4 {[%emt 0:02:16]} 23. Bh1 {[%emt 0:00:25]} Qh6 {[%emt 0:00:23]} 24. Nc3 {[%emt 0:04:37]} Nh7 {[%emt 0:03:14]} 25. Ra2 {[%emt 0:08:19]} Ng5 {[%emt 0:06:19]} 26. Rf5 {[%emt 0:01:20]} Nh3+ {[%emt 0:05:16]} 27. Kf1 {[%emt 0:00:06]} Qe3 {[%emt 0:00:17]} 28. Ne2 {[%emt 0:05:05]} Rh5 {[%emt 0:02:11]} 29. Nd4 {[%emt 0:10:41]} Rxf5+ {[%emt 0:02:05]} 30. Nxf5 {[%emt 0:00:17]} Qg1+ {[%emt 0:00:14]} 31. Ke2 {[%emt 0:00:20]} Qxh1 {[%emt 0:00:53]} 32. Kd3 {[%emt 0:02:37]} Nf6 {[%emt 0:00:40]} 33. Qe2 {[%emt 0:04:23]} Ng5 {[%emt 0:04:50]} 34. c5 {[%emt 0:05:51]} Ngxe4 {[%emt 0:01:12]} 35. cxd6 {[%emt 0:03:36]} Qb1+ {[%emt 0:00:15]} 36. Kc4 {[%emt 0:03:23]} cxd6 {[%emt 0:00:38]} 37. Rc2 {[%emt 0:02:19]} Rc8+ {[%emt 0:00:15]} 38. Kd3 {[%emt 0:01:05]} Qb3+ {[%emt 0:00:25] Kd4 [%emt 00:00:32]} 0-1

[Event "World Senior chT-50 2019"]
[Site "Rhodes"]
[Date "2019.04.22"]
[Round "7.37"]
[White "Burchardt, Brigitte"]
[Black "Kristiansen, Erling"]
[Result "0-1"]
[ECO "C54"]
[WhiteElo "2136"]
[BlackElo "2134"]
[Annotator "NA"]
[PlyCount "72"]
[EventDate "2019.04.16"]
[EventType "team-tourn"]
[EventCountry "GRE"]
[SourceTitle "playchess.com"]
[Source "ChessBase"]
[SourceQuality "1"]
[WhiteTeam "Germany"]
[BlackTeam "Norway"]
[WhiteTeamCountry "GER"]
[BlackTeamCountry "NOR"]
[TimeControl "40/5400+30:1800+30"]

1. e4 {[%emt 0:00:00]} e5 {[%emt 0:00:00]} 2. Bc4 {[%emt 0:00:00]} Nf6 {[%emt 0:02:40]} 3. d3 {[%emt 0:00:00]} Bc5 {[%emt 0:00:26]} 4. Nf3 {[%emt 0:00:44]} d6 {[%emt 0:00:05]} 5. h3 {[%emt 0:00:24]} Nc6 {[%emt 0:00:05]} 6. c3 {[%emt 0:03:20]} Bb6 {[%emt 0:02:22]} 7. O-O {[%emt 0:01:53]} h6 {[%emt 0:01:14]} 8. a4 {[%emt 0:02:37]} a6 {[%emt 0:00:47]} 9. Na3 {[%emt 0:01:20]} g5 {[%emt 0:02:46]} 10. Nh2 {[%emt 0:03:58]} Rg8 {[%emt 0:03:00]} 11. g4 {[%emt 0:01:11]} h5 {[%emt 0:00:45]} 12. Be3 {[%emt 0:00:47]} hxg4 {[%emt 0:00:08]} 13. hxg4 {[%emt 0:00:05]} d5 {[%emt 0:04:41]} 14. exd5 {[%emt 0:09:42]} Nxd5 {[%emt 0:00:04]} 15. Nc2 $17 {[%emt 0:04:46]} (15. Bxd5 $14 {stays ahead.} Qxd5 16. Bxb6 cxb6 17. Nc4) 15... Nf4 {[%emt 0:04:24]} 16. d4 {[%emt 0:06:23]} Qf6 {[%emt 0:00:52]} 17. Re1 {[%emt 0:06:24]} Rh8 {[%emt 0:03:16]} 18. f3 {[%emt 0:11:21]} Kf8 {[%emt 0:04:25]} 19. Qd2 {[%emt 0:23:13]} exd4 {[%emt 0:10:09]} 20. Nxd4 {[%emt 0:00:58]} Nxd4 {[%emt 0:00:06]} 21. cxd4 {[%emt 0:02:34]} Nh3+ {[%emt 0:01:55]} 22. Kh1 {[%emt 0:02:03]} Bd7 {[%emt 0:01:07]} 23. a5 {[%emt 0:03:06]} Ba7 {[%emt 0:00:47]} 24. Bd5 {[%emt 0:01:45]} Rb8 {[%emt 0:02:34]} 25. Be4 {[%emt 0:00:30]} Qd6 {[%emt 0:04:49]} 26. Rad1 {[%emt 0:03:43]} Bb5 {[%emt 0:02:58]} 27. d5 {[%emt 0:00:59]} Bxe3 {[%emt 0:00:16]} 28. Rxe3 {[%emt 0:00:03]} Re8 {[%emt 0:01:00]} 29. Rc1 {[%emt 0:02:06]} c6 {[%emt 0:02:43]} 30. Rc2 {[%emt 0:02:24]} cxd5 {[%emt 0:02:31]} 31. Bd3 {[%emt 0:01:46]} Rxe3 {[%emt 0:00:36]} 32. Qxe3 {[%emt 0:00:03]} Bc6 {[%emt 0:00:14]} 33. Bf1 {[%emt 0:01:03]} Nf4 {[%emt 0:00:15]} 34. Qb6 {[%emt 0:01:54]} d4 {[%emt 0:00:46]} 35. Rxc6 {[%emt 0:00:46]} bxc6 {[%emt 0:00:46]} 36. Qxa6 {[%emt 0:00:40]} d3 {[%emt 0:00:12]} 0-1

[Event "World Senior chT-50 2019"]
[Site "Rhodes"]
[Date "2019.04.22"]
[Round "7.38"]
[White "Semakoff, Aleks"]
[Black "Wagner-Michel, Annett"]
[Result "1/2-1/2"]
[ECO "B56"]
[WhiteElo "2037"]
[BlackElo "2056"]
[Annotator "NA"]
[PlyCount "50"]
[EventDate "2019.04.16"]
[EventType "team-tourn"]
[EventCountry "GRE"]
[SourceTitle "playchess.com"]
[Source "ChessBase"]
[SourceQuality "1"]
[WhiteTeam "Norway"]
[BlackTeam "Germany"]
[WhiteTeamCountry "NOR"]
[BlackTeamCountry "GER"]
[TimeControl "40/5400+30:1800+30"]

1. e4 {[%emt 0:00:00]} c5 {[%emt 0:00:00]} 2. Nf3 {[%emt 0:00:00]} Nc6 {[%emt 0:00:00]} 3. d4 {[%emt 0:00:02]} cxd4 {[%emt 0:00:09]} 4. Nxd4 {[%emt 0:00:06]} Nf6 {[%emt 0:00:00]} 5. Nc3 {[%emt 0:00:10]} d6 {[%emt 0:00:36]} 6. g3 {[%emt 0:01:22]} e5 {[%emt 0:04:56]} 7. Nde2 {[%emt 0:02:03]} Bg4 {[%emt 0:02:55]} 8. Bg2 {[%emt 0:01:20]} Nd4 {[%emt 0:03:19]} 9. Qd3 {[%emt 0:01:00]} Nxe2 {[%emt 0:04:55]} 10. Nxe2 {[%emt 0:00:21]} Be7 {[%emt 0:08:42]} 11. O-O {[%emt 0:03:00]} h6 {[%emt 0:01:57]} 12. Be3 {[%emt 0:11:24]} O-O {[%emt 0:06:58]} 13. Nc3 {[%emt 0:08:28]} Qc8 {[%emt 0:09:03]} 14. f3 {[%emt 0:05:48]} Be6 {[%emt 0:05:07]} 15. Rfd1 {[%emt 0:04:22]} Rd8 {[%emt 0:03:18]} 16. Qe2 {[%emt 0:10:25]} d5 {[%emt 0:09:46]} 17. exd5 {[%emt 0:02:24]} Nxd5 {[%emt 0:00:18]} 18. Nxd5 {[%emt 0:01:05]} Bxd5 {[%emt 0:00:27]} 19. Rd2 {[%emt 0:05:37]} Qe6 {[%emt 0:08:12]} 20. a3 {[%emt 0:09:09]} Bc4 {[%emt 0:06:30]} 21. Rxd8+ {[%emt 0:02:42]} Rxd8 {[%emt 0:00:04]} 22. Qe1 {[%emt 0:01:35]} b6 {[%emt 0:03:36]} 23. Rd1 {[%emt 0:01:18]} Rxd1 {[%emt 0:02:23]} 24. Qxd1 {[%emt 0:00:07]} Qd5 {[%emt 0:02:05]} 25. Qxd5 {[%emt 0:00:44]} Bd3 {[%emt 0:00:41]} 1/2-1/2

[Event "World Senior chT-50 2019"]
[Site "Rhodes"]
[Date "2019.04.22"]
[Round "7.39"]
[White "Schulz, Petra"]
[Black "Johnsen, Sylvia"]
[Result "1-0"]
[ECO "C68"]
[WhiteElo "2051"]
[BlackElo "1949"]
[Annotator "NA"]
[PlyCount "39"]
[EventDate "2019.04.16"]
[EventType "team-tourn"]
[EventCountry "GRE"]
[SourceTitle "playchess.com"]
[Source "ChessBase"]
[SourceQuality "1"]
[WhiteTeam "Germany"]
[BlackTeam "Norway"]
[WhiteTeamCountry "GER"]
[BlackTeamCountry "NOR"]
[TimeControl "40/5400+30:1800+30"]

1. e4 {[%emt 0:00:00]} e5 {[%emt 0:00:00]} 2. Nf3 {[%emt 0:00:00]} Nc6 {[%emt 0:00:00]} 3. Bb5 {[%emt 0:00:00]} a6 {[%emt 0:00:00]} 4. Bxc6 {[%emt 0:00:00]} dxc6 {[%emt 0:00:15]} 5. O-O {[%emt 0:00:05]} Bd6 {[%emt 0:04:30]} 6. d4 {[%emt 0:00:38]} exd4 {[%emt 0:15:43]} 7. Qxd4 {[%emt 0:00:09]} f6 {[%emt 0:16:59]} 8. Be3 {[%emt 0:09:39]} Bd7 {[%emt 0:09:50]} 9. Nbd2 {[%emt 0:03:30]} Qe7 {[%emt 0:06:56]} 10. Rad1 {[%emt 0:14:03]} c5 {[%emt 0:01:35]} 11. Qd3 {[%emt 0:00:08]} Bc6 {[%emt 0:02:03]} 12. Nc4 {[%emt 0:10:15]} O-O-O {[%emt 0:07:24]} 13. e5 {[%emt 0:01:19]} fxe5 {[%emt 0:06:03]} 14. Nfxe5 {[%emt 0:01:03]} Be8 {[%emt 0:02:06]} 15. Nxd6+ {[%emt 0:08:30]} cxd6 {[%emt 0:06:53]} 16. Nc4 {[%emt 0:00:59]} d5 {[%emt 0:05:47]} 17. Nb6+ {[%emt 0:00:13]} Kb8 {[%emt 0:00:44]} 18. Nxd5 {[%emt 0:00:09]} Qf8 {[%emt 0:02:22]} 19. Bf4+ {[%emt 0:08:14]} Ka7 {[%emt 0:01:14]} 20. Bc7 {[%emt 0:00:21]} 1-0